bitfinex-derivatives/quotes_ETHF0:USTF0_20230105
["timestamp","ask_amount","ask_price","bid_price","bid_amount"]
[1672905129689,2.99240788,1250.2,1250.1,17.31591598]
[1672905132328,2.99240788,1250.2,1250.1,14.31808452]
[1672905132537,2.99240788,1250.2,1250.1,17.31591598]
[1672905133270,1.19647771,1250.2,1250.1,17.31591598]
[1672905133478,1.19647771,1250.2,1250.1,14.92037016]
[1672905133903,2.99240788,1250.2,1250.1,14.31730443]
[1672905134420,2.99240788,1250.2,1250.1,17.31513589]
[1672905134742,2.99240788,1250.2,1250.1,17.31531543]
[1672905134942,2.99240788,1250.2,1250.1,17.31530924]
[1672905135154,1.19647771,1250.2,1250.1,14.92037016]
[1672905135783,1.19647771,1250.2,1250.1,17.31526177]
[1672905135993,1.19647771,1250.2,1250.1,14.92037016]
[1672905136213,1.19647771,1250.2,1250.1,14.91542302]
[1672905142418,2.99240788,1250.3,1250.1,22.45251817]
[1672905142726,1.19647771,1250.3,1250.2,20.62410952]
[1672905142933,2.99240788,1250.4,1250.3,0.31494787]
[1672905143145,1.19647771,1250.4,1250.3,12.73098636]
[1672905143351,4.188785,1250.6,1250.4,10.505]
[1672905143563,1.79593017,1250.6,1250.5,9.80004902]
[1672905143769,1.79593017,1250.6,1250.5,12.19344772]
[1672905143981,1.79593017,1250.6,1250.5,11.81546858]
[1672905144301,2.39285483,1250.7,1250.6,10.505]
[1672905144302,4.188785,1250.7,1250.6,10.505]
[1672905144616,4.188785,1250.7,1250.6,12.30009007]
[1672905145029,2.39285483,1250.7,1250.6,12.30009007]
[1672905145243,4.18744539,1250.7,1250.6,12.30009007]
[1672905145563,4.29459056,1250.7,1250.6,11.70069634]
[1672905145775,1.79459056,1250.7,1250.6,13.49578641]
[1672905147343,7.39524539,1250.8,1250.7,10.505]
[1672905147555,5.60065483,1250.8,1250.7,2.5]
[1672905149451,2.39285483,1250.8,1250.7,2.5]
[1672905149663,5.60065483,1250.8,1250.7,2.5]
[1672905151550,5.60065483,1250.8,1250.7,10.505]
[1672905151763,4.99875009,1250.8,1250.7,10.505]
[1672905153132,1.79095009,1250.8,1250.7,10.505]
[1672905157336,7.39160492,1250.9,1250.7,10.505]
[1672905157757,1.79095009,1251.0,1250.8,1.19569634]
[1672905157959,1.79095009,1251.0,1250.9,10.505]
[1672905159438,4.18380492,1251.0,1250.9,10.505]
[1672905159649,6.68229406,1251.0,1250.7,3.69569634]
[1672905159861,4.99723923,1250.9,1250.7,2.5]
[1672905160065,2.5,1250.8,1250.7,2.5]
[1672905160276,6.99723923,1250.9,1250.7,2.5]
[1672905160487,6.99723923,1250.9,1250.7,10.505]
[1672905160697,5.2078,1250.9,1250.7,11.70069634]
[1672905161647,2.0,1250.9,1250.7,11.70069634]
[1672905161855,9.89009406,1251.0,1250.7,11.70069634]
[1672905162068,7.49723923,1251.0,1250.7,11.70069634]
[1672905164161,4.28943923,1251.0,1250.7,11.70069634]
[1672905164377,7.49723923,1251.0,1250.7,11.70069634]
[1672905166064,7.49723923,1251.0,1250.7,10.505]
[1672905166269,7.49723923,1251.0,1250.7,11.70069634]
[1672905167113,9.89009406,1251.0,1250.7,10.505]
[1672905167744,3.2078,1250.9,1250.7,10.505]
[1672905167954,5.7078,1250.9,1250.7,11.70069634]
[1672905168267,5.7078,1250.9,1250.7,10.505]
[1672905168481,5.7078,1250.9,1250.7,11.70069634]
[1672905169004,3.2078,1250.9,1250.7,11.70069634]
[1672905172167,4.99723923,1250.9,1250.7,11.70069634]
[1672905172376,3.2078,1250.9,1250.7,11.70069634]
[1672905172892,2.5,1250.8,1250.7,1.19569634]
[1672905173099,2.5,1250.8,1250.6,16.70069634]
[1672905173309,2.5,1250.8,1250.6,18.49578641]
[1672905173943,2.5,1250.8,1250.6,15.99578641]
[1672905174783,2.5,1250.8,1250.7,1.19569634]
[1672905174993,2.5,1250.8,1250.7,3.69569634]
[1672905176157,5.7078,1250.8,1250.7,3.69569634]
[1672905176580,2.5,1250.8,1250.7,3.69569634]
[1672905176784,3.2078,1250.8,1250.7,3.69569634]
[1672905177000,5.7078,1250.8,1250.7,3.69569634]
[1672905177315,7.49723923,1250.8,1250.7,3.69569634]
[1672905178363,7.49723923,1250.8,1250.7,5.49078641]
[1672905179208,7.49723923,1250.8,1250.7,3.69569634]
[1672905179409,7.49723923,1250.8,1250.7,5.49078641]
[1672905179731,7.49723923,1250.8,1250.7,5.49085376]
[1672905180359,1.78943923,1250.8,1250.7,4.29509007]
[1672905180774,1.78943923,1250.8,1250.7,12.30009007]
[1672905181302,1.78943923,1250.8,1250.7,12.8983987]
[1672905183302,4.18229406,1250.8,1250.7,14.31528224]
[1672905184353,2.39285483,1250.8,1250.7,4.18953042]
[1672905184776,5.38547397,1250.8,1250.7,1.79613172]
[1672905184977,2.39285483,1250.8,1250.7,1.79613172]
[1672905185190,5.38547397,1250.8,1250.7,1.79613172]
[1672905185509,2.39285483,1250.8,1250.7,14.69453042]
[1672905185716,2.39285483,1250.8,1250.7,14.31531542]
[1672905188871,2.39285483,1250.8,1250.7,12.8983987]
[1672905189611,2.39285483,1250.8,1250.7,10.3983987]
[1672905190240,2.99261914,1250.8,1250.7,12.19541416]
[1672905190556,7.88858618,1250.8,1250.7,10.3983987]
[1672905191390,5.49261914,1250.8,1250.7,10.3983987]
[1672905191611,7.88914702,1250.8,1250.7,11.81536367]
[1672905191924,7.88914702,1250.8,1250.7,10.3983987]
[1672905192134,5.49261914,1250.8,1250.7,2.3933987]
[1672905192344,5.49261914,1250.8,1250.7,4.19083647]
[1672905192557,5.49261914,1250.8,1250.7,1.79743777]
[1672905192869,2.5,1250.8,1250.7,1.13440435]
[1672905193182,6.08920468,1250.8,1250.7,1.13440435]
[1672905194549,6.08920468,1250.8,1250.6,1.79743777]
[1672905194757,6.20188614,1250.7,1250.6,1.79743777]
[1672905196440,6.20188614,1250.7,1250.6,0.93203777]
[1672905196649,3.2078,1250.7,1250.4,16.3513987]
[1672905196972,7.3972258,1250.5,1250.4,16.3513987]
[1672905197280,5.0032682,1250.5,1250.4,6.31064259]
[1672905198534,5.0032682,1250.5,1250.4,4.8933987]
[1672905199380,5.0032682,1250.5,1250.4,2.3933987]
[1672905199589,5.0032682,1250.5,1250.4,4.8933987]
[1672905200742,5.0032682,1250.5,1250.4,2.3933987]
[1672905200956,5.0032682,1250.5,1250.4,2.5]
[1672905201901,5.0032682,1250.5,1250.4,4.8933987]
[1672905202638,5.0032682,1250.5,1250.4,2.5]
[1672905203053,5.0032682,1250.5,1250.4,4.8933987]
[1672905203263,5.0032682,1250.5,1250.4,2.5]
[1672905210094,1.7954682,1250.5,1250.4,2.5]
[1672905210302,5.0032682,1250.5,1250.4,2.5]
[1672905210620,1.7954682,1250.5,1250.4,2.5]
[1672905210831,5.0032682,1250.5,1250.4,2.5]
[1672905211466,1.7954682,1250.5,1250.4,2.5]
[1672905211782,5.0032682,1250.5,1250.4,2.5]
[1672905213879,1.7954682,1250.5,1250.4,2.5]
[1672905214096,5.0032682,1250.5,1250.4,2.5]
[1672905214508,1.7954682,1250.5,1250.4,2.5]
[1672905214719,5.0032682,1250.5,1250.4,2.5]
[1672905221029,1.7954682,1250.5,1250.4,2.5]
[1672905221240,5.0032682,1250.5,1250.4,2.5]
[1672905223440,5.0032682,1250.5,1250.4,4.8933987]
[1672905223967,1.7954682,1250.5,1250.4,4.8933987]
[1672905224179,5.0032682,1250.5,1250.4,4.8933987]
[1672905224705,1.7954682,1250.5,1250.4,4.8933987]
[1672905224914,5.0032682,1250.5,1250.4,4.8933987]
[1672905228496,7.3972258,1250.5,1250.4,6.31061751]
[1672905230176,4.1894258,1250.5,1250.4,6.31061751]
[1672905230381,7.3972258,1250.5,1250.4,6.31061751]
[1672905230699,5.6017576,1250.5,1250.4,6.31065189]
[1672905230909,2.3939576,1250.5,1250.4,6.31065189]
[1672905231121,5.6017576,1250.5,1250.4,6.31065189]
[1672905231336,5.6017576,1250.5,1250.4,3.81065189]
[1672905232594,6.200247,1250.5,1250.4,6.80415168]
[1672905232805,8.59748179,1250.5,1250.4,6.80415168]
[1672905233534,5.38968179,1250.5,1250.4,6.80415168]
[1672905233749,8.59748179,1250.5,1250.4,6.80415168]
[1672905234693,2.992447,1250.5,1250.4,4.41075298]
[1672905234903,6.200247,1250.5,1250.4,4.41075298]
[1672905235123,8.5981053,1250.5,1250.4,4.41075298]
[1672905236064,6.200247,1250.5,1250.4,4.41075298]
[1672905236487,6.200247,1250.5,1250.4,6.80957144]
[1672905236694,6.200247,1250.5,1250.4,4.41075298]
[1672905237332,2.992447,1250.5,1250.4,4.41075298]
[1672905237847,6.200247,1250.5,1250.4,4.41075298]
[1672905238062,2.992447,1250.5,1250.4,4.41075298]
[1672905238271,6.200247,1250.5,1250.4,4.41075298]
[1672905239114,2.992447,1250.5,1250.4,4.41075298]
[1672905239429,6.200247,1250.5,1250.4,4.41075298]
[1672905239955,2.992447,1250.5,1250.4,4.41075298]
[1672905240166,6.200247,1250.5,1250.4,4.41075298]
[1672905240697,2.992447,1250.5,1250.4,4.41075298]
[1672905240900,8.59809744,1250.5,1250.4,4.41075298]
[1672905241111,5.60565044,1250.5,1250.4,4.41075298]
[1672905241955,2.39785044,1250.5,1250.4,4.41075298]
[1672905242270,5.60565044,1250.5,1250.4,4.41075298]
[1672905243327,6.200247,1250.5,1250.4,4.41075298]
[1672905243538,8.59807465,1250.5,1250.4,4.41075298]
[1672905244064,5.39027465,1250.5,1250.4,4.41075298]
[1672905244271,8.59807465,1250.5,1250.4,4.41075298]
[1672905244587,6.200247,1250.5,1250.4,4.41075298]
[1672905245012,8.59799428,1250.5,1250.4,4.41075298]
[1672905246058,5.60554728,1250.5,1250.4,4.41075298]
[1672905248057,2.39774728,1250.5,1250.4,4.41075298]
[1672905252997,1.79809917,1250.5,1250.4,1.41725319]
[1672905253208,4.79809917,1250.5,1250.4,1.41725319]
[1672905253418,1.79809917,1250.5,1250.4,1.41725319]
[1672905255102,1.79809917,1250.5,1250.4,12.41904407]
[1672905256162,1.79809917,1250.5,1250.4,9.42225319]
[1672905256472,1.79809917,1250.5,1250.4,12.42225319]
[1672905256686,1.79809917,1250.5,1250.4,15.41898606]
[1672905257738,1.79809917,1250.5,1250.4,12.42225319]
[1672905257947,1.79809917,1250.5,1250.4,15.4188058]
[1672905258161,1.79809917,1250.5,1250.4,12.42225319]
[1672905258578,1.79809917,1250.6,1250.4,12.42225319]
[1672905258784,1.79809917,1250.6,1250.5,12.42225319]
[1672905258993,1.79809917,1250.6,1250.5,15.41847795]
[1672905263941,1.79809917,1250.6,1250.5,17.81395735]
[1672905264253,1.79809917,1250.6,1250.5,15.41847795]
[1672905264780,5.60554728,1250.6,1250.5,14.81772637]
[1672905264979,7.40165894,1250.6,1250.5,14.81772637]
[1672905265399,7.40167232,1250.6,1250.5,14.81772637]
[1672905268252,5.00392504,1250.6,1250.5,14.81772637]
[1672905268461,7.40167232,1250.6,1250.5,14.81772637]
[1672905268672,5.00392504,1250.6,1250.5,14.81772637]
[1672905268989,1.79612504,1250.6,1250.5,14.81772637]
[1672905269406,4.19387232,1250.6,1250.5,14.81772637]
[1672905270774,4.19387232,1250.6,1250.5,6.81272637]
[1672905271091,2.39774728,1250.6,1250.5,6.81272637]
[1672905272453,2.39774728,1250.6,1250.5,5.39547318]
[1672905273193,2.39774728,1250.6,1250.5,6.81260146]
[1672905273809,4.19401747,1250.6,1250.5,6.81260146]
[1672905274026,1.79627019,1250.6,1250.5,9.80882622]
[1672905275718,4.19401747,1250.6,1250.5,9.80882622]
[1672905276129,4.19401747,1250.6,1250.5,6.81260146]
[1672905276345,2.39774728,1250.6,1250.5,6.81260146]
[1672905278975,2.39774728,1250.6,1250.5,9.80882622]
[1672905281191,4.19481788,1250.6,1250.5,7.41335304]
[1672905282654,1.7970706,1250.6,1250.5,7.41335304]
[1672905282864,4.19481788,1250.6,1250.5,7.41335304]
[1672905283813,1.7970706,1250.6,1250.5,7.41335304]
[1672905284762,4.19481788,1250.6,1250.5,7.41335304]
[1672905285491,1.7970706,1250.6,1250.5,7.41335304]
[1672905287075,4.19481788,1250.6,1250.5,7.41335304]
[1672905288336,1.7970706,1250.6,1250.5,7.41335304]
[1672905288749,2.39774728,1250.6,1250.5,7.41335304]
[1672905288965,5.39774728,1250.6,1250.5,7.41335304]
[1672905289170,2.39774728,1250.6,1250.5,7.41335304]
[1672905289592,4.19531665,1250.6,1250.5,7.41335304]
[1672905290437,2.39774728,1250.6,1250.5,7.41335304]
[1672905295593,4.19561307,1250.6,1250.5,7.41335304]
[1672905295791,2.39774728,1250.6,1250.5,7.41335304]
[1672905296739,4.1956151,1250.6,1250.5,7.41335304]
[1672905299693,1.79786782,1250.6,1250.5,4.41712828]
[1672905299899,1.79786782,1250.6,1250.5,7.41421364]
[1672905300111,1.79786782,1250.6,1250.5,4.41712828]
[1672905300316,1.79786782,1250.6,1250.5,7.4142061]
[1672905301161,4.1956151,1250.6,1250.5,7.4142061]
[1672905301373,4.1956151,1250.6,1250.5,4.41712828]
[1672905301687,4.1956151,1250.6,1250.5,7.41443628]
[1672905302526,1.79786782,1250.6,1250.5,4.41712828]
[1672905302944,4.1956151,1250.6,1250.5,4.41712828]
[1672905303367,4.1956151,1250.6,1250.5,7.41444699]
[1672905304003,2.39774728,1250.6,1250.5,7.41444699]
[1672905305893,2.39774728,1250.6,1250.5,4.41444699]
[1672905315357,4.19611975,1250.6,1250.5,1.41712828]
[1672905315772,1.79837247,1250.6,1250.5,1.41712828]
[1672905316928,2.99486783,1250.6,1250.5,13.02069416]
[1672905317138,1.79589563,1250.6,1250.5,13.02069416]
[1672905317344,2.99469269,1250.6,1250.5,12.42212828]
[1672905317554,2.99469269,1250.6,1250.5,15.62992828]
[1672905317979,2.99469269,1250.6,1250.5,19.22849416]
[1672905318190,2.99469269,1250.6,1250.5,15.62992828]
[1672905319776,2.99469269,1250.6,1250.5,12.42212828]
[1672905320934,2.99469269,1250.6,1250.5,15.62992828]
[1672905321138,2.99469269,1250.6,1250.5,12.42212828]
[1672905321459,2.99442375,1250.6,1250.5,12.42212828]
[1672905321666,1.79589563,1250.6,1250.5,12.42212828]
[1672905322188,2.99443085,1250.6,1250.5,12.42212828]
[1672905325770,1.19853522,1250.6,1250.5,22.54549246]
[1672905325973,1.19853522,1250.6,1250.5,24.43496858]
[1672905326181,1.19853522,1250.6,1250.5,22.54549246]
[1672905326491,1.19853522,1250.6,1250.5,24.43496858]
[1672905328912,8.59799428,1250.8,1250.5,24.43496858]
[1672905329123,8.59799428,1250.8,1250.7,10.40146411]
[1672905329332,8.59799428,1250.8,1250.7,11.81839676]
[1672905329649,8.59799428,1250.8,1250.7,11.81839378]
[1672905329860,5.60554728,1250.8,1250.7,11.81839378]
[1672905330919,2.39774728,1250.8,1250.7,12.59415127]
[1672905331125,1.19807508,1250.8,1250.7,10.19768716]
[1672905331652,1.19807508,1250.9,1250.7,10.19768716]
[1672905331972,1.19807508,1250.8,1250.7,8.78075749]
[1672905332184,1.19807508,1250.8,1250.7,13.18933043]
[1672905333338,1.19807508,1250.9,1250.7,13.18933043]
[1672905333547,1.19807508,1250.9,1250.8,14.81415549]
[1672905334076,8.60554728,1251.0,1250.8,14.81415549]
[1672905334279,8.60554728,1251.0,1250.9,5.99068814]
[1672905334493,9.200247,1251.0,1250.9,4.19627526]
[1672905334808,9.200247,1251.0,1250.9,1.19627526]
[1672905336495,11.59342809,1251.0,1250.9,1.19627526]
[1672905336706,8.60098109,1251.0,1250.9,2.99068814]
[1672905336916,11.59342809,1251.0,1250.9,1.19627526]
[1672905337230,8.60098109,1251.0,1250.9,1.19627526]
[1672905337649,11.59342809,1251.0,1250.9,1.19627526]
[1672905338493,9.200247,1251.0,1250.9,1.19627526]
[1672905338802,9.200247,1251.0,1250.8,13.99568814]
[1672905339018,9.200247,1251.0,1250.9,1.19627526]
[1672905339220,11.59289151,1251.0,1250.9,1.19627526]
[1672905339429,9.200247,1251.0,1250.9,1.19627526]
[1672905341434,11.59284859,1251.0,1250.9,1.19627526]
[1672905342073,9.200247,1251.0,1250.9,1.19627526]
[1672905342594,9.200247,1251.0,1250.8,13.99568814]
[1672905342805,5.39263881,1250.9,1250.8,13.99103047]
[1672905343535,2.39263881,1250.9,1250.8,13.99103047]
[1672905344170,2.39263881,1250.9,1250.8,1.19627526]
[1672905344485,8.38508581,1250.9,1250.8,1.19627526]
[1672905344898,5.38508581,1250.9,1250.8,1.19627526]
[1672905345109,2.39263881,1250.9,1250.8,2.99068814]
[1672905346485,2.39263881,1250.9,1250.8,1.19627526]
[1672905346692,5.39263881,1250.9,1250.8,1.19627526]
[1672905347222,5.39263881,1250.9,1250.8,2.99068814]
[1672905348066,2.39263881,1250.9,1250.8,1.19627526]
[1672905348373,8.38508581,1250.9,1250.8,1.19627526]
[1672905348587,5.992447,1250.9,1250.8,1.19627526]
[1672905349009,8.38570474,1250.9,1250.8,1.19627526]
[1672905349324,5.992447,1250.9,1250.8,1.19627526]
[1672905351212,5.992447,1250.9,1250.8,2.99068814]
[1672905351418,5.992447,1250.9,1250.8,1.19627526]
[1672905352053,5.992447,1250.9,1250.7,2.99068814]
[1672905352264,9.09430645,1250.8,1250.7,2.99068814]
[1672905352893,9.09430645,1250.8,1250.7,5.99068814]
[1672905353112,6.10185945,1250.8,1250.7,5.99068814]
[1672905353317,6.10185945,1250.8,1250.7,4.79441288]
[1672905354262,6.10185945,1250.8,1250.7,1.79441288]
[1672905355110,6.10185945,1250.8,1250.7,4.79441288]
[1672905355526,5.60185945,1250.8,1250.7,1.79441288]
[1672905356160,5.60185945,1250.8,1250.7,4.79441288]
[1672905356480,5.60185945,1250.8,1250.7,1.79441288]
[1672905356685,5.60185945,1250.8,1250.7,4.79441288]
[1672905357003,5.60185945,1250.8,1250.7,1.79441288]
[1672905357214,5.60185945,1250.8,1250.7,7.18684182]
[1672905357417,5.60185945,1250.8,1250.7,4.18684182]
[1672905357839,5.60185945,1250.8,1250.7,1.79441288]
[1672905359420,8.59430645,1250.8,1250.7,1.79441288]
[1672905359631,5.60185945,1250.8,1250.7,1.79441288]
[1672905360150,5.60185945,1250.8,1250.7,4.79441288]
[1672905360360,5.60185945,1250.8,1250.7,1.79441288]
[1672905360993,5.60185945,1250.8,1250.7,4.79441288]
[1672905361313,5.60185945,1250.8,1250.7,1.79441288]
[1672905361732,5.60185945,1250.8,1250.7,4.79441288]
[1672905361945,5.60185945,1250.8,1250.7,7.18684182]
[1672905362154,5.60185945,1250.8,1250.7,4.79441288]
[1672905362367,5.60185945,1250.8,1250.7,4.18684182]
[1672905362576,5.60185945,1250.8,1250.7,7.18684182]
[1672905363103,8.59430645,1250.8,1250.7,1.79441288]
[1672905363305,5.60185945,1250.8,1250.7,1.79441288]
[1672905364260,8.59430645,1250.8,1250.7,1.79441288]
[1672905364466,6.200247,1250.8,1250.7,2.99142476]
[1672905364994,8.595198,1250.8,1250.7,1.79441288]
[1672905366248,8.595198,1250.8,1250.7,4.79441288]
[1672905366462,5.602751,1250.8,1250.7,1.79441288]
[1672905367730,5.602751,1250.8,1250.7,4.79441288]
[1672905367936,5.602751,1250.8,1250.7,1.79441288]
[1672905368461,5.602751,1250.8,1250.7,7.18684182]
[1672905369099,5.602751,1250.8,1250.7,1.79441288]
[1672905369512,5.602751,1250.8,1250.7,7.18684182]
[1672905369834,5.602751,1250.8,1250.7,4.18684182]
[1672905370041,5.602751,1250.8,1250.7,7.18684182]
[1672905371836,5.602751,1250.8,1250.7,4.18684182]
[1672905372348,5.602751,1250.8,1250.7,7.18684182]
[1672905372558,5.602751,1250.8,1250.7,7.18850643]
[1672905372768,5.602751,1250.8,1250.7,4.18850643]
[1672905372978,8.595198,1250.8,1250.7,1.79607749]
[1672905373302,8.595198,1250.8,1250.7,4.18850643]
[1672905376676,8.595198,1250.8,1250.7,2.39242894]
[1672905377407,6.200247,1250.8,1250.7,2.39242894]
[1672905377618,2.992447,1250.8,1250.7,2.39242894]
[1672905377829,6.200247,1250.8,1250.7,2.39242894]
[1672905378145,8.59655244,1250.8,1250.7,2.39242894]
[1672905379090,6.200247,1250.8,1250.7,2.39242894]
[1672905379407,6.200247,1250.8,1250.7,5.39242894]
[1672905379616,8.59688498,1250.8,1250.7,3.80937938]
[1672905380355,6.200247,1250.8,1250.7,3.80937938]
[1672905389074,6.200247,1250.8,1250.7,6.80122577]
[1672905389397,2.992447,1250.8,1250.7,6.80122577]
[1672905389600,2.992447,1250.8,1250.7,9.80122577]
[1672905389918,6.200247,1250.8,1250.7,3.80937938]
[1672905390335,3.2078,1250.8,1250.7,4.19103756]
[1672905390547,3.2078,1250.8,1250.7,1.79860862]
[1672905396646,6.58920468,1250.9,1250.7,1.79860862]
[1672905396858,3.2078,1250.8,1250.7,1.79860862]
[1672905397270,6.58920468,1250.9,1250.7,1.79860862]
[1672905397588,3.2078,1250.8,1250.7,2.9972906]
[1672905398225,6.79700468,1250.8,1250.6,2.9972906]
[1672905398542,3.7078,1250.7,1250.6,1.19868198]
[1672905400123,0.5,1250.7,1250.6,1.19868198]
[1672905400333,3.7078,1250.7,1250.6,1.19868198]
[1672905401592,6.70165683,1250.7,1250.6,1.19868198]
[1672905407160,6.70165683,1250.7,1250.6,1.19189084]
[1672905410409,6.70165683,1250.7,1250.5,1.79860862]
[1672905410626,5.39361389,1250.6,1250.5,1.79860862]
[1672905411676,2.39361389,1250.6,1250.5,1.79860862]
[1672905414723,5.60141389,1250.6,1250.5,1.79860862]
[1672905415989,2.39361389,1250.6,1250.5,1.79860862]
[1672905416408,5.60141389,1250.6,1250.5,1.79860862]
[1672905422188,2.39361389,1250.6,1250.5,1.79860862]
[1672905422499,8.59527072,1250.6,1250.4,7.19103756]
[1672905422712,7.18904749,1250.5,1250.4,7.19103756]
[1672905422917,4.7954336,1250.5,1250.4,7.19103756]
[1672905423337,7.18904749,1250.5,1250.4,7.19103756]
[1672905423753,4.18904749,1250.5,1250.4,7.19103756]
[1672905424175,2.39361389,1250.5,1250.4,1.79860862]
[1672905424598,5.60141389,1250.5,1250.4,1.79860862]
[1672905425337,5.60141389,1250.5,1250.4,4.79860862]
[1672905425536,5.60141389,1250.5,1250.4,7.19103756]
[1672905425753,7.39677297,1250.5,1250.4,7.19103756]
[1672905426382,5.60141389,1250.5,1250.4,7.19103756]
[1672905428279,2.39361389,1250.5,1250.4,7.19103756]
[1672905428482,2.39361389,1250.5,1250.4,5.39242894]
[1672905428693,5.60141389,1250.5,1250.4,5.39242894]
[1672905428904,2.39361389,1250.5,1250.4,5.39242894]
[1672905429117,5.60141389,1250.5,1250.4,5.39242894]
[1672905429327,5.60141389,1250.5,1250.4,7.18898445]
[1672905430066,5.60141389,1250.5,1250.4,5.39242894]
[1672905430266,5.60141389,1250.5,1250.4,6.80968725]
[1672905430593,5.60141389,1250.5,1250.4,5.39242894]
[1672905430800,5.60141389,1250.5,1250.4,7.18920031]
[1672905431326,5.60141389,1250.5,1250.4,4.18920031]
[1672905432694,2.39361389,1250.5,1250.4,4.18920031]
[1672905433007,5.60141389,1250.5,1250.4,4.18920031]
[1672905433221,5.60141389,1250.5,1250.4,2.39242894]
[1672905433846,2.39361389,1250.5,1250.4,2.39242894]
[1672905434053,5.60141389,1250.5,1250.4,2.39242894]
[1672905435859,2.39361389,1250.5,1250.4,2.39242894]
[1672905436061,5.60141389,1250.5,1250.4,2.39242894]
[1672905436374,5.38747072,1250.5,1250.4,3.80972023]
[1672905436792,5.60141389,1250.5,1250.4,3.80972023]
[1672905439958,2.39361389,1250.5,1250.4,3.80972023]
[1672905440156,5.60141389,1250.5,1250.4,3.80972023]
[1672905440684,2.39361389,1250.5,1250.4,3.80972023]
[1672905440897,5.60141389,1250.5,1250.4,3.80972023]
[1672905441320,8.59527072,1250.5,1250.4,3.80972023]
[1672905441636,5.60141389,1250.5,1250.4,3.80972023]
[1672905441849,8.59527072,1250.5,1250.4,3.80972023]
[1672905442372,8.59813183,1250.5,1250.4,3.80972086]
[1672905442692,6.20165683,1250.5,1250.4,1.79793975]
[1672905443839,6.20165683,1250.5,1250.4,4.19036869]
[1672905444361,2.99385683,1250.5,1250.4,4.19036869]
[1672905444578,6.20165683,1250.5,1250.4,4.19036869]
[1672905446267,6.20165683,1250.5,1250.4,1.79793975]
[1672905446678,6.20165683,1250.5,1250.4,4.19036869]
[1672905446891,6.20165683,1250.5,1250.4,1.79793975]
[1672905448161,6.20165683,1250.5,1250.4,4.19036869]
[1672905448895,2.99385683,1250.5,1250.4,4.19036869]
[1672905449207,6.20165683,1250.5,1250.4,4.19036869]
[1672905453102,6.20165683,1250.5,1250.4,2.39242894]
[1672905454994,2.99385683,1250.5,1250.4,2.39242894]
[1672905455208,6.20165683,1250.5,1250.4,2.39242894]
[1672905455416,6.20165683,1250.5,1250.4,3.8097354]
[1672905456360,2.99385683,1250.5,1250.4,3.8097354]
[1672905456674,6.20165683,1250.5,1250.4,2.39242894]
[1672905457090,6.20165683,1250.5,1250.4,4.19084624]
[1672905457300,6.20165683,1250.5,1250.4,3.80974738]
[1672905457617,6.20165683,1250.5,1250.4,2.39242894]
[1672905458146,2.99385683,1250.5,1250.4,2.39242894]
[1672905458455,2.99385683,1250.5,1250.4,3.80974736]
[1672905458675,6.20165683,1250.5,1250.4,2.39242894]
[1672905458876,6.20165683,1250.5,1250.4,3.80975005]
[1672905459406,6.20165683,1250.5,1250.4,2.39242894]
[1672905459617,6.20165683,1250.5,1250.4,3.80974909]
[1672905460667,2.99385683,1250.5,1250.4,3.80974909]
[1672905460877,6.20165683,1250.5,1250.4,3.80974909]
[1672905461717,2.99385683,1250.5,1250.4,3.80974909]
[1672905461922,6.20165683,1250.5,1250.4,3.80974909]
[1672905464769,2.99385683,1250.5,1250.4,3.80974909]
[1672905464981,6.20165683,1250.5,1250.4,3.80974909]
[1672905468871,2.99385683,1250.5,1250.4,3.80974909]
[1672905469074,6.20165683,1250.5,1250.4,3.80974909]
[1672905469503,2.99385683,1250.5,1250.4,3.80974909]
[1672905469713,6.20165683,1250.5,1250.4,3.80974909]
[1672905473177,2.99385683,1250.5,1250.4,3.80974909]
[1672905473389,6.20165683,1250.5,1250.4,3.80974909]
[1672905474333,6.20165683,1250.5,1250.4,6.80159548]
[1672905474645,6.20165683,1250.5,1250.4,3.80974909]
[1672905479485,2.99385683,1250.5,1250.4,3.80974909]
[1672905479694,6.20165683,1250.5,1250.4,3.80974909]
[1672905480012,6.19391286,1250.5,1250.4,6.80974909]
[1672905480863,2.98611286,1250.5,1250.4,6.80974909]
[1672905481073,6.19391286,1250.5,1250.4,6.80974909]
[1672905483168,8.59239648,1250.5,1250.4,9.80159548]
[1672905483383,8.59239648,1250.5,1250.4,7.40916654]
[1672905484005,5.60628362,1250.5,1250.4,7.40916654]
[1672905487372,2.39848362,1250.5,1250.4,7.40916654]
[1672905487585,5.60628362,1250.5,1250.4,7.40916654]
[1672905489373,2.39848362,1250.5,1250.4,7.40916654]
[1672905489582,5.60628362,1250.5,1250.4,7.40916654]
[1672905490003,2.39848362,1250.5,1250.4,7.40916654]
[1672905490213,5.60628362,1250.5,1250.4,7.40916654]
[1672905492005,5.60628362,1250.5,1250.4,9.80728239]
[1672905492432,5.60628362,1250.5,1250.4,7.40916654]
[1672905493794,2.39848362,1250.5,1250.4,7.40916654]
[1672905494000,5.60628362,1250.5,1250.4,7.40916654]
[1672905494323,2.39848362,1250.5,1250.4,7.40916654]
[1672905494524,5.60628362,1250.5,1250.4,7.40916654]
[1672905497788,2.39848362,1250.5,1250.4,7.40916654]
[1672905497999,5.60628362,1250.5,1250.4,7.40916654]
[1672905498419,2.39848362,1250.5,1250.4,7.40916654]
[1672905498735,5.60628362,1250.5,1250.4,7.40916654]
[1672905500105,5.60628362,1250.5,1250.4,4.40916654]
[1672905503247,5.60628362,1250.5,1250.4,7.40916654]
[1672905505781,2.39848362,1250.5,1250.4,7.40916654]
[1672905506093,5.60628362,1250.5,1250.4,7.40916654]
[1672905506406,2.39848362,1250.5,1250.4,7.40916654]
[1672905506618,5.60628362,1250.5,1250.4,7.40916654]
[1672905508296,5.60628362,1250.5,1250.4,15.41416654]
[1672905510083,2.39848362,1250.5,1250.4,15.41416654]
[1672905511033,4.19692037,1250.5,1250.4,15.41416654]
[1672905511561,2.39848362,1250.5,1250.4,15.41416654]
[1672905512821,4.19685736,1250.5,1250.4,15.41416654]
[1672905513968,2.39848362,1250.5,1250.4,15.41416654]
[1672905525433,2.39848362,1250.5,1250.4,15.42016998]
[1672905525752,4.19709193,1250.5,1250.4,15.42016998]
[1672905526072,4.19709193,1250.5,1250.4,12.42232015]
[1672905526282,2.39848362,1250.5,1250.4,15.42023773]
[1672905527333,2.39848362,1250.5,1250.4,12.42232015]
[1672905527334,4.19711673,1250.5,1250.4,12.42232015]
[1672905528383,4.19711673,1250.5,1250.4,15.42006681]
[1672905529645,2.39848362,1250.5,1250.4,15.42006681]
[1672905529961,4.19707818,1250.5,1250.4,15.42006681]
[1672905530168,2.39848362,1250.5,1250.4,15.42006681]
[1672905532577,4.19710882,1250.5,1250.4,15.42006681]
[1672905534793,4.19710882,1250.5,1250.4,12.42232015]
[1672905534996,4.19710882,1250.5,1250.4,15.42017575]
[1672905535205,2.39848362,1250.5,1250.4,12.42017575]
[1672905535416,5.39621292,1250.5,1250.4,12.42017575]
[1672905535628,2.39848362,1250.5,1250.4,12.42017575]
[1672905536789,5.60628362,1250.5,1250.4,12.42017575]